fUST/lending_fUST_20240131
["ID","MTS","AMOUNT","RATE_DAILY","PERIOD"]
[313025852,1706643046719,-33233.16498743,0.0003488,3]
[313025854,1706643046728,-71597.80317146,0.0003498,4]
[313025857,1706643046744,-127606.66294948,0.0003498,4]
[313025859,1706643046754,-152.035045,0.0003498,2]
[313025861,1706643046763,-166.131962,0.0003498,2]
[313025863,1706643046772,-166.131962,0.0003498,2]
[313025865,1706643046782,-168.808145,0.0003498,2]
[313025867,1706643046791,-151.0,0.0003498,2]
[313025869,1706643046801,-261.185077,0.0003498,2]
[313025871,1706643046810,-261.185077,0.0003498,2]
[313025873,1706643046819,-3802.995333,0.0003498,2]
[313025875,1706643046828,-151.0,0.0003498,2]
[313025877,1706643046838,-831.409286,0.0003498,2]
[313025879,1706643046847,-831.409286,0.0003498,2]
[313025881,1706643046856,-151.0,0.0003498,2]
[313025883,1706643046865,-10000.0,0.0003498,2]
[313025885,1706643046873,-10000.0,0.0003498,2]
[313025887,1706643046882,-10000.0,0.0003498,2]
[313025889,1706643046892,-1600.0,0.0003499,6]
[313025891,1706643046901,-13399.53656021,0.00035,2]
[313025893,1706643046909,-255.10600488,0.00035,2]
[313025895,1706643046918,-549.19559026,0.00035,7]
[313025897,1706643046927,-10178.3761213,0.00035,2]
[313025899,1706643046936,-310.0148976,0.00035,2]
[313025901,1706643046945,-2361.91789264,0.00035,2]
[313025903,1706643046954,-4805.63382024,0.00035,7]
[313025956,1706643450016,3571.9574024,0.00020053,2]
[313025958,1706643453096,304.482172,0.00020053,2]
[313025965,1706643798853,166.696548,0.00019623,2]
[313025978,1706643892597,304.482172,0.00020028,2]
[313025987,1706644164841,155.01395126,0.000205,2]
[313025988,1706644197265,7970.65505241,0.000205,2]
[313025989,1706644203712,938.95628043,0.000205,2]
[313025991,1706644209155,260.67799851,0.000205,2]
[313025992,1706644209899,679.74060206,0.000205,2]
[313025993,1706644210778,155.01395126,0.000205,2]
[313025994,1706644213909,234.47285412,0.000205,2]
[313025995,1706644218996,310.00310004,0.0001845,2]
[313025996,1706644223699,938.95628043,0.000205,2]
[313025997,1706644224354,1110.69036683,0.000205,2]
[313026059,1706644232300,-765.01912158,0.00020501,2]
[313026060,1706644232357,-2985.31936918,0.00020501,2]
[313026062,1706644232366,-155.01395126,0.0002053,2]
[313026064,1706644232375,-164.3749518,0.00020531,2]
[313026065,1706644232383,-164.93249697,0.00020955,2]
[313026066,1706644232392,-13141.616283,0.00021047,2]
[313026081,1706644232759,172.6119014,0.000205,2]
[313026087,1706644233911,234.47285412,0.000205,2]
[313026131,1706644238491,-352.09255748,0.00021047,2]
[313026622,1706644245695,704.72349743,0.0001845,2]
[313026735,1706644246752,-19973.35513755,0.00021047,2]
[313026738,1706644246762,-160.12041175,0.00021054,2]
[313026740,1706644246772,-2077.00381468,0.00021055,2]
[313026742,1706644246782,-2106.51819104,0.00021055,2]
[313026743,1706644246791,-156.29721489,0.00021055,2]
[313026745,1706644246800,-1265.96906703,0.00021055,2]
[313026747,1706644246809,-261.02920205,0.00021055,2]
[313026749,1706644246818,-166.92639514,0.00021055,2]
[313026751,1706644246827,-171.95327391,0.00021055,2]
[313026753,1706644246837,-235.56020887,0.00021055,2]
[313026755,1706644246847,-155.32436211,0.00021055,2]
[313026757,1706644246856,-155.017051,0.00021055,2]
[313026759,1706644246866,-2204.74460856,0.00021055,2]
[313026760,1706644246875,-260.67799851,0.00021055,2]
[313026761,1706644246884,-657.94349126,0.00021055,2]
[313026762,1706644246979,-19687.41023008,0.00021056,2]
[313026763,1706644246988,-274.95522647,0.00021056,2]
[313026764,1706644246998,-200.0,0.00022002,7]
[313026766,1706644247007,-157.83895982,0.00023,2]
[313026768,1706644247017,-183.9,0.0002399,3]
[313026770,1706644247025,-350.68,0.0002399,3]
[313026772,1706644247034,-4013.85201876,0.00024,2]
[313026774,1706644247043,-280.0,0.00024202,7]
[313026776,1706644247052,-4730.93218311,0.00025,2]
[313026778,1706644247061,-1829.35161493,0.00025,2]
[313026780,1706644247070,-648.68903832,0.00026601,2]
[313026782,1706644247079,-391.0,0.00026622,15]
[313026784,1706644247088,-292.24,0.00026643,3]
[313026786,1706644247097,-30198.69833573,0.00026653,2]
[313026788,1706644247106,-27216.74348038,0.00026653,2]
[313026790,1706644247115,-6896.08482917,0.00026653,2]
[313026792,1706644247124,-1000.0,0.000275,2]
[313026794,1706644247134,-1000.0,0.000275,2]
[313026796,1706644247143,-1000.0,0.000275,2]
[313026797,1706644247152,-1000.0,0.000275,2]
[313026800,1706644247161,-1000.0,0.000275,2]
[313026802,1706644247171,-1000.0,0.000275,2]
[313026804,1706644247180,-1000.0,0.000275,2]
[313026806,1706644247189,-1000.0,0.000275,2]
[313026808,1706644247198,-1000.0,0.000275,2]
[313026810,1706644247207,-1000.0,0.000275,2]
[313026812,1706644247216,-1000.0,0.000275,2]
[313026814,1706644247225,-621.43445192,0.00027931,2]
[313026816,1706644247235,-201.10139586,0.00028,2]
[313026818,1706644247244,-199.5795051,0.00028493,2]
[313026820,1706644247253,-155.0,0.00028798,2]
[313026822,1706644247261,-370.04024356,0.00029,2]
[313026824,1706644247271,-1959.77429776,0.00029,2]
[313026826,1706644247279,-311.755237,0.00029082,2]
[313026827,1706644247289,-200.0,0.00029284,15]
[313026829,1706644247298,-348.0,0.00029284,15]
[313026831,1706644247307,-396.5606359,0.00029315,2]
[313026833,1706644247317,-620.0717226,0.00029328,2]
[313026836,1706644247326,-153.0,0.00029356,2]
[313026838,1706644247336,-153.0,0.00029356,2]
[313026840,1706644247345,-155.01395126,0.0002975,3]
[313026841,1706644247355,-68064.33876538,0.00029798,2]
[313026843,1706644247364,-8041.22897359,0.000299,2]
[313026848,1706644247400,684.8398126,0.0001845,2]
[313026953,1706644248349,1111.02241216,0.0001845,2]
[313027606,1706644254917,310.00310004,0.00016605,2]
[313027688,1706644255912,332.31972134,0.0001845,2]
[313028560,1706644265142,684.8398126,0.0001845,2]
[313028661,1706644266435,517.50004421,0.0001845,2]
[313028680,1706644277036,261.92752603,0.00016605,2]
[313028682,1706644279708,938.03984623,0.0001845,2]
[313028686,1706644287139,684.8398126,0.0001845,2]
[313028687,1706644305137,684.8398126,0.0001845,2]
[313028689,1706644323142,684.8398126,0.0001845,2]
[313028691,1706644339140,200.93825312,0.0001845,2]
[313028707,1706644600972,155.04509292,0.0001845,2]
[313028710,1706644622863,214.69807464,0.0001845,2]
[313028723,1706645021893,-155.017051,0.00021055,2]
[313028724,1706645021918,-238.88414539,0.00021055,2]
[313028725,1706645021944,-593.78733898,0.00021055,2]
[313028726,1706645021971,-1637.29667726,0.00021055,2]
[313028727,1706645021996,-1571.70149471,0.00021055,2]
[313028728,1706645022022,-2106.51819104,0.00021055,2]
[313028729,1706645022047,-155.01085076,0.00021055,2]
[313028730,1706645022071,-155.01085076,0.00021055,2]
[313028731,1706645022095,-155.01085076,0.00021055,2]
[313028732,1706645022120,-155.01085076,0.00021055,2]
[313028733,1706645022144,-155.01085076,0.00021055,2]
[313028734,1706645022169,-131.74084782,0.00021056,2]
[313028796,1706645434003,-2115.2417628,0.00021055,2]
[313028858,1706645438602,-9924.93477062,0.00021055,2]
[313028859,1706645438612,-1511.57787327,0.00021055,2]
[313028861,1706645438621,-294.56411098,0.00021055,2]
[313028863,1706645438630,-1197.09254656,0.00021055,2]
[313028864,1706645438639,-1738.45809862,0.00021056,2]
[313028866,1706645438649,-2552.07883825,0.00022,2]
[313028868,1706645438659,-155.01085076,0.00022,2]
[313028870,1706645438668,-200.0,0.0002316,7]
[313028872,1706645438677,-4730.93218311,0.00025,2]
[313028873,1706645438687,-15624.18171854,0.00025,2]
[313028875,1706645438698,-1000.0,0.00025,2]
[313028886,1706645441090,309.72125088,0.0001895,2]
[313028961,1706645446592,-260.67799851,0.00021056,2]
[313028962,1706645446602,-1206.82200149,0.00025,2]
[313028965,1706645446718,-802.23260884,0.00025,2]
[313028966,1706645446727,-280.0,0.00025476,7]
[313028967,1706645446736,-181.607606,0.000259,2]
[313028968,1706645446745,-2360.78393207,0.00026653,2]
[313028969,1706645446754,-1184.96628759,0.00026653,2]
[313028970,1706645446765,-1476.12834241,0.00026653,2]
[313029045,1706646631691,-3394.60090585,0.00020845,2]
[313029047,1706646631701,-185.64325511,0.00020956,2]
[313029049,1706646631710,-155.04831009,0.00021055,2]
[313029051,1706646631719,-155.00155002,0.00021055,2]
[313029053,1706646631728,-274.19777213,0.00021056,2]
[313029055,1706646631737,-155.00465014,0.00022,2]
[313029057,1706646631746,-24900.0,0.00023537,2]
[313029059,1706646631755,-245.9748359,0.00023795,2]
[313029062,1706646631764,-304.482172,0.00024062,2]
[313029064,1706646631776,-367.29630702,0.00024553,2]
[313029066,1706646631785,-200.0,0.00025889,7]
[313029068,1706646631794,-166.696548,0.00026595,2]
[313029070,1706646631803,-1281.09667369,0.00026653,2]
[313029072,1706646631812,-1360.83717402,0.00026653,2]
[313029074,1706646631821,-280.11858007,0.00026653,2]
[313029076,1706646631830,-9615.14419927,0.00026653,7]
[313029078,1706646631839,-9642.48917046,0.00026653,2]
[313029080,1706646631848,-273.19777793,0.00026676,2]
[313029082,1706646631856,-2701.16839881,0.00026776,2]
[313029084,1706646631866,-280.0,0.00028478,15]
[313029086,1706646631876,-210.7718519,0.00028808,2]
[313029087,1706646631885,-4812.13,0.0002888,3]
[313029088,1706646631895,-4010.1,0.0002888,3]
[313029089,1706646631904,-3341.75,0.0002888,3]
[313029090,1706646631913,-1000.0,0.0002889,2]
[313029091,1706646631923,-1000.0,0.0002889,2]
[313029092,1706646631932,-1000.0,0.0002889,2]
[313029093,1706646631941,-1000.0,0.0002889,2]
[313029094,1706646631950,-1000.0,0.0002889,2]
[313029095,1706646631959,-1000.0,0.0002889,2]
[313029096,1706646631968,-1000.0,0.0002889,2]
[313029097,1706646631978,-1000.0,0.0002889,2]
[313029098,1706646631986,-1000.0,0.0002889,2]
[313029099,1706646631995,-1000.0,0.0002889,2]
[313029100,1706646632004,-1000.0,0.0002889,2]
[313029101,1706646632013,-330.18892302,0.0002889,2]
[313029102,1706646632032,-669.81107698,0.0002889,2]
[313029103,1706646632041,-1000.0,0.0002889,2]
[313029104,1706646632051,-1000.0,0.0002889,2]
[313029105,1706646632059,-1000.0,0.0002889,2]
[313029106,1706646632069,-783.65139453,0.0002889,2]
[313029107,1706646632101,-216.34860547,0.0002889,2]
[313029108,1706646632110,-1000.0,0.0002889,2]
[313029109,1706646632120,-1000.0,0.0002889,2]
[313029110,1706646632130,-1000.0,0.0002889,2]
[313029111,1706646632140,-1000.0,0.0002889,2]
[313029112,1706646632150,-1000.0,0.0002889,2]
[313029113,1706646632161,-1000.0,0.0002889,2]
[313029114,1706646632170,-1000.0,0.0002889,2]
[313029115,1706646632182,-1000.0,0.0002889,2]
[313029116,1706646632192,-1000.0,0.0002889,2]
[313029117,1706646632202,-1000.0,0.0002889,2]
[313029119,1706646632211,-1000.0,0.0002889,2]
[313029121,1706646632221,-1000.0,0.0002889,2]
[313029122,1706646632231,-1000.0,0.0002889,2]
[313029123,1706646632242,-1000.0,0.0002889,2]
[313029125,1706646632251,-1000.0,0.0002889,2]
[313029127,1706646632263,-1640.54215775,0.000289,2]
[313029135,1706646632368,-4070.0,0.000289,2]
[313029212,1706646637734,-2784.8,0.0002888,3]
[313029214,1706646637744,-182.51098004,0.000289,2]
[313029216,1706646637755,-3327.79813989,0.000289,2]
[313029267,1706646640883,-4414.11072628,0.000289,2]
[313029269,1706646640895,-3176.50034951,0.000289,2]
[313029271,1706646640905,-155.0,0.000289,2]
[313029272,1706646640914,-300.0,0.00029,2]
[313029273,1706646640925,-300.0,0.000295,2]
[313029274,1706646640934,-367.29630702,0.00029553,2]
[313029275,1706646640945,-2968.01159596,0.00029699,2]
[313029276,1706646640954,-156.06067751,0.0002971,3]
[313029277,1706646640963,-755.3707997,0.000299,2]
[313029278,1706646640982,-6167.56100161,0.000299,2]
[313029279,1706646640993,-27411.56788522,0.000299,2]
[313029295,1706646642771,-4768.06,0.000299,2]
[313029419,1706646645774,-11300.00000005,0.000299,2]
[313029420,1706646645786,-2660.95351395,0.000299,2]
[313029421,1706646645798,-13672.68602938,0.000299,2]
[313029422,1706646645841,-9329.48318462,0.000299,2]
[313029460,1706646801545,2799.14,0.000205,2]
[313029510,1706647831910,-193.7686859,0.00020955,2]
[313029511,1706647831920,-6884.61411412,0.00021055,2]
[313029512,1706647831929,-495.5592829,0.00021055,2]
[313029513,1706647831938,-15604.4614637,0.00021055,2]
[313029514,1706647831947,-1584.57551026,0.00021055,2]
[313029515,1706647831956,-309.88995547,0.00021055,2]
[313029516,1706647831966,-2106.51819104,0.00021055,2]
[313029517,1706647831976,-155.27739018,0.00021055,2]
[313029518,1706647831985,-332.76542094,0.00021056,2]
[313029519,1706647831994,-200.0,0.00022107,7]
[313029520,1706647832004,-280.0,0.00024318,7]
[313029521,1706647832014,-11770.7012044,0.00024557,2]
[313029522,1706647832023,-166.696548,0.00024584,2]
[313029523,1706647832032,-3000.0,0.00025167,2]
[313029524,1706647832044,-2893.31649441,0.00026666,2]
[313029525,1706647832053,-361.59334389,0.00026666,2]
[313029526,1706647832063,-8757.28904229,0.00026688,2]
[313029527,1706647832072,-391.0,0.00026749,15]
[313029528,1706647832082,-2320.66,0.00026837,3]
[313029529,1706647832091,-1933.89,0.00026837,3]
[313029530,1706647832100,-1611.57,0.00026837,3]
[313029531,1706647832109,-1009.59589487,0.00026847,2]
[313029532,1706647832121,-19991.46933847,0.00026847,2]
[313029533,1706647832132,-3767.06185677,0.00026847,2]
[313029534,1706647832143,-1599.84205229,0.00026847,2]
[313029535,1706647832155,-6707.86801507,0.00026847,2]
[313030017,1706647846090,-8039.69848091,0.00026847,2]
[313030018,1706647865727,542.3971227,0.000205,2]
[313030028,1706648037436,155.63059507,0.00015791,2]
[313030035,1706648317169,215.60591,0.00020457,2]
[313030038,1706648611973,13687.9991988,0.00020079,2]
[313030039,1706648661575,1018.0,0.00019919,2]
[313030040,1706648701213,343.44691055,0.00019919,2]
[313030041,1706648718974,155.00620025,0.00019919,2]
[313030042,1706648719207,343.44691055,0.00019919,2]
[313030043,1706648737203,342.39661163,0.00019919,2]
[313030044,1706648737940,949.87454992,0.00019919,2]
[313030045,1706648739132,215.90954415,0.00019919,2]
[313030047,1706648828848,938.95628043,0.00019919,2]
[313030048,1706648842935,938.95628043,0.00019919,2]
[313030050,1706648864830,651.84177751,0.00019919,2]
[313030144,1706649041275,-213.72676045,0.00020785,2]
[313030145,1706649041287,-171.16808954,0.00020786,2]
[313030146,1706649041299,-155.00465014,0.00020787,2]
[313030147,1706649041311,-155.00465014,0.00020787,2]
[313030148,1706649041322,-1640.08201467,0.00020821,2]
[313030149,1706649041334,-1870.90383506,0.00020845,2]
[313030150,1706649041348,-10990.40901523,0.00020845,2]
[313030151,1706649041362,-8851.38367767,0.00020845,2]
[313030152,1706649041373,-180.10807367,0.00020955,2]
[313030153,1706649041385,-155.03875969,0.00021055,2]
[313030154,1706649041396,-309.84512699,0.00021055,2]
[313030155,1706649041408,-156.7683487,0.00021055,2]
[313030156,1706649041419,-343.63115409,0.00021055,2]
[313030157,1706649041434,-1773.55532835,0.00021055,2]
[313030158,1706649041447,-937.851625,0.00021055,2]
[313030211,1706649043142,-732.02644888,0.00021055,2]
[313030273,1706649166570,208.6110556,0.00020052,2]
[313030274,1706649197561,24900.0,0.00019972,2]
[313030282,1706649214861,193.14550409,0.000189,2]
[313030284,1706649328600,155.29661906,0.00019872,2]
[313030285,1706649505535,237.79983819,0.00019773,2]
[313030288,1706649658793,24900.0,0.00019747,2]
[313030312,1706650207683,3326.84002864,0.00020409,2]
[313030314,1706650216989,12858.346969,0.00019585,2]
[313030345,1706650232271,-175.43157375,0.00020514,2]
[313030347,1706650232282,-133.30113805,0.00020515,2]
[313030350,1706650232294,-80.4256224,0.00020515,2]
[313030352,1706650232303,-167.24069426,0.00020516,2]
[313030354,1706650232312,-155.00310006,0.00020517,2]
[313030356,1706650232321,-1243.97055445,0.00020517,2]
[313030358,1706650232330,-173.48294305,0.0002052,2]
[313030360,1706650232340,-2213.07,0.00020594,3]
[313030362,1706650232349,-83813.3038538,0.00020604,2]
[313030364,1706650232358,-8087.4860246,0.00020605,2]
[313030450,1706650238422,-12838.24898838,0.00020605,2]
[313030452,1706650238432,-18927.35300975,0.00020606,2]
[313030454,1706650238441,-2655.68,0.00020607,3]
[313030456,1706650238450,-173.48294303,0.00020628,2]
[313030458,1706650238460,-155.00465014,0.0002063,2]
[313030460,1706650238469,-4819.97769138,0.0002063,2]
[313030461,1706650238479,-1383.48718949,0.00020634,2]
[313030464,1706650238490,-155.00620025,0.00020706,2]
[313030465,1706650238499,-7970.65505241,0.0002073,2]
[313030467,1706650238508,-173.48294303,0.00020737,2]
[313030469,1706650238517,-494.9489016,0.00020742,2]
[313030471,1706650238526,-155.14514716,0.00020744,2]
[313030473,1706650238535,-600.0,0.00020822,2]
[313030475,1706650238544,-466.42760995,0.00020822,2]
[313030477,1706650238554,-445.01133808,0.00020822,2]
[313030479,1706650238563,-314.70220726,0.00020822,2]
[313030481,1706650238572,-303.13985087,0.00020841,2]
[313030483,1706650238581,-1264.51072055,0.00020841,2]
[313030485,1706650238590,-316.47323329,0.00020842,2]
[313030487,1706650238600,-176.86265737,0.00020842,2]
[313030489,1706650238609,-1905.43148423,0.00020845,2]
[313030491,1706650238618,-173.48294303,0.00020845,2]
[313030493,1706650238627,-173.48294303,0.00020953,2]
[313030495,1706650238637,-1844.23,0.00021042,3]
[313030497,1706650238646,-151.0,0.00021052,2]
[313030499,1706650238655,-1505.57891,0.00021052,2]
[313030501,1706650238665,-1505.57891,0.00021052,2]
[313030503,1706650238674,-151.0,0.00021052,2]
[313030505,1706650238683,-10000.0,0.00021052,2]
[313030518,1706650238692,-10000.0,0.00021052,2]
[313030520,1706650238804,-10000.0,0.00021052,2]
[313030522,1706650238813,-309.72125088,0.00021052,2]
[313030524,1706650238822,-155.04496304,0.00021052,2]
[313030525,1706650238831,-621.74137913,0.00021052,2]
[313030527,1706650238841,-1198.85411505,0.00021052,2]
[313030530,1706650238851,-527.37323605,0.00021052,2]
[313030531,1706650238861,-500.0,0.00021052,2]
[313030533,1706650238870,-1367.98900414,0.00021052,2]
[313030536,1706650238880,-165.98990982,0.00021052,2]
[313030537,1706650238890,-470.19018519,0.00021052,2]
[313030539,1706650238898,-178.74538316,0.00021052,2]
[313030541,1706650238907,-663.45474894,0.00021052,2]
[313030543,1706650238917,-715.76565283,0.00021052,2]
[313030545,1706650238926,-193.54319736,0.00021052,2]
[313030547,1706650238936,-177.09665134,0.00021052,2]
[313030549,1706650238944,-227.43519653,0.00021052,2]
[313030551,1706650238953,-488.62496948,0.00021052,2]
[313030553,1706650238962,-1578.24819686,0.00021052,2]
[313030555,1706650238972,-262.20739186,0.00021052,2]
[313030557,1706650238981,-156.79522636,0.00021052,2]
[313030559,1706650238990,-1020.35679192,0.00021052,2]
[313030561,1706650239003,-1086.16139912,0.00021052,2]
[313030563,1706650239012,-1700.52786078,0.00021052,2]
[313030565,1706650239021,-233.99171594,0.00021052,2]
[313030567,1706650239030,-332.25503996,0.00021052,2]
[313030569,1706650239040,-155.60546346,0.00021052,2]
[313030571,1706650239049,-155.02790186,0.00021052,2]
[313030573,1706650239059,-155.01860223,0.00021052,2]
[313030575,1706650239070,-200.0,0.00021052,2]
[313030577,1706650239079,-259.27542868,0.00021052,2]
[313030579,1706650239089,-169.09579844,0.00021052,2]
[313030581,1706650239098,-155.52200796,0.00021052,2]
[313030583,1706650239107,-170.577747,0.00021053,2]
[313030585,1706650239116,-170.577747,0.00021053,2]
[313030587,1706650239125,-277.10504725,0.00021053,2]
[313030589,1706650239135,-379.361404,0.00021053,2]
[313030590,1706650239144,-379.361404,0.00021053,2]
[313030592,1706650239153,-379.361404,0.00021053,2]
[313030594,1706650239162,-379.361404,0.00021053,2]
[313030596,1706650239171,-4025.354008,0.00021053,2]
[313030598,1706650239181,-4025.354008,0.00021053,2]
[313030600,1706650239190,-4025.354008,0.00021053,2]
[313030602,1706650239199,-4025.354008,0.00021053,2]
[313030604,1706650239209,-4025.354008,0.00021053,2]
[313030606,1706650239218,-4025.354008,0.00021053,2]
[313030608,1706650239227,-4025.354008,0.00021053,2]
[313030610,1706650239236,-4025.354008,0.00021053,2]
[313030612,1706650239245,-1505.57891,0.00021053,2]
[313030614,1706650239254,-1505.57891,0.00021053,2]
[313030616,1706650239264,-1505.57891,0.00021053,2]
[313030617,1706650239273,-1505.57891,0.00021053,2]
[313030620,1706650239282,-1505.57891,0.00021053,2]
[313030622,1706650239292,-1505.57891,0.00021053,2]
[313030623,1706650239301,-1505.57891,0.00021053,2]
[313030625,1706650239310,-1505.57891,0.00021053,2]
[313030627,1706650239320,-1505.57891,0.00021053,2]
[313030629,1706650239329,-1505.57891,0.00021053,2]
[313030631,1706650239339,-1505.57891,0.00021053,2]
[313030633,1706650239348,-1505.57891,0.00021053,2]
[313030635,1706650239357,-1505.57891,0.00021053,2]
[313030637,1706650239367,-1505.57891,0.00021053,2]
[313030639,1706650239376,-1505.57891,0.00021053,2]
[313030641,1706650239386,-1505.57891,0.00021053,2]
[313030643,1706650239395,-1505.57891,0.00021053,2]
[313030645,1706650239405,-1505.578907,0.00021053,2]
[313030647,1706650239418,-151.0,0.00021053,2]
[313030649,1706650239428,-211.581868,0.00021053,2]
[313030651,1706650239437,-10000.0,0.00021053,2]
[313030653,1706650239446,-10000.0,0.00021053,2]
[313030655,1706650239455,-10000.0,0.00021053,2]
[313030657,1706650239465,-10000.0,0.00021053,2]
[313030659,1706650239474,-10000.0,0.00021053,2]
[313030661,1706650239484,-10000.0,0.00021053,2]
[313030664,1706650239499,-10000.0,0.00021053,2]
[313030665,1706650239508,-10000.0,0.00021053,2]
[313030667,1706650239517,-10000.0,0.00021053,2]
[313030669,1706650239526,-10000.0,0.00021053,2]
[313030671,1706650239535,-10000.0,0.00021053,2]
[313030673,1706650239545,-10000.0,0.00021053,2]
[313030675,1706650239553,-10000.0,0.00021053,2]
[313030677,1706650239563,-10000.0,0.00021053,2]
[313030679,1706650239572,-10000.0,0.00021053,2]
[313030681,1706650239582,-10000.0,0.00021053,2]
[313030683,1706650239591,-10000.0,0.00021053,2]
[313030685,1706650239601,-10000.0,0.00021053,2]
[313030687,1706650239611,-10000.0,0.00021053,2]
[313030689,1706650239621,-10000.0,0.00021053,2]
[313030691,1706650239630,-10000.0,0.00021053,2]
[313030693,1706650239639,-10000.0,0.00021053,2]
[313030695,1706650239648,-10000.0,0.00021053,2]
[313030697,1706650239656,-10000.0,0.00021053,2]
[313030699,1706650239665,-6588.534938,0.00021053,2]
[313030701,1706650239675,-242.7024983,0.00021053,2]
[313030702,1706650239684,-2035.34911286,0.00021053,2]
[313030703,1706650239693,-14679.55896149,0.00021053,2]
[313030704,1706650239702,-500.0,0.00021054,2]
[313030705,1706650239712,-511.84526851,0.00021054,2]
[313030706,1706650239720,-500.0,0.00021054,2]
[313030707,1706650239729,-500.0,0.00021054,2]
[313030708,1706650239739,-298.48147438,0.00021054,2]
[313030709,1706650239748,-415.76505033,0.00021054,2]
[313030710,1706650239757,-500.0,0.00021054,2]
[313030711,1706650239766,-500.0,0.00021054,2]
[313030712,1706650239776,-500.0,0.00021054,2]
[313030713,1706650239785,-581.19811971,0.00021054,2]
[313030714,1706650239795,-236.77949922,0.00021054,2]
[313030715,1706650239804,-185.56595218,0.00021054,2]
[313030716,1706650239813,-160.99225998,0.00021054,2]
[313030717,1706650239823,-219.36225793,0.00021054,2]
[313030718,1706650239833,-158919.37080397,0.00021055,2]
[313030719,1706650239843,-151.0,0.00021055,2]
[313030720,1706650239852,-152.725525,0.00021055,2]
[313030721,1706650239862,-170.577747,0.00021055,2]
[313030722,1706650239871,-170.577747,0.00021055,2]
[313030723,1706650239880,-170.577747,0.00021055,2]
[313030724,1706650239889,-170.577747,0.00021055,2]
[313030725,1706650239898,-170.577747,0.00021055,2]
[313030726,1706650239907,-170.577747,0.00021055,2]
[313030728,1706650239916,-170.577747,0.00021055,2]
[313030730,1706650239925,-170.577747,0.00021055,2]
[313030732,1706650239934,-170.577747,0.00021055,2]
[313030734,1706650239943,-170.577747,0.00021055,2]
[313030736,1706650239951,-170.577747,0.00021055,2]
[313030738,1706650239961,-170.577747,0.00021055,2]
[313030740,1706650239970,-170.577747,0.00021055,2]
[313030742,1706650239979,-170.577747,0.00021055,2]
[313030744,1706650239988,-379.361404,0.00021055,2]
[313030746,1706650239998,-379.361404,0.00021055,2]
[313030748,1706650240008,-379.361404,0.00021055,2]
[313030750,1706650240017,-379.361404,0.00021055,2]
[313030752,1706650240027,-379.361404,0.00021055,2]
[313030754,1706650240036,-379.361404,0.00021055,2]
[313030756,1706650240045,-379.361404,0.00021055,2]
[313030758,1706650240054,-379.361404,0.00021055,2]
[313030760,1706650240064,-379.361404,0.00021055,2]
[313030762,1706650240075,-379.361404,0.00021055,2]
[313030765,1706650240085,-379.361404,0.00021055,2]
[313030766,1706650240094,-379.361404,0.00021055,2]
[313030768,1706650240103,-379.361404,0.00021055,2]
[313030770,1706650240112,-379.361404,0.00021055,2]
[313030772,1706650240122,-379.361404,0.00021055,2]
[313030774,1706650240131,-379.361396,0.00021055,2]
[313030776,1706650240141,-4025.354008,0.00021055,2]
[313030778,1706650240150,-4025.354008,0.00021055,2]
[313030780,1706650240159,-4025.354008,0.00021055,2]
[313030782,1706650240169,-4025.354008,0.00021055,2]
[313030784,1706650240178,-4025.354008,0.00021055,2]
[313030786,1706650240187,-4025.354008,0.00021055,2]
[313030789,1706650240196,-4025.354008,0.00021055,2]
[313030791,1706650240206,-4025.354008,0.00021055,2]
[313030793,1706650240215,-4025.354008,0.00021055,2]
[313030795,1706650240224,-4025.354008,0.00021055,2]
[313030797,1706650240234,-4025.354008,0.00021055,2]
[313030798,1706650240243,-4025.354008,0.00021055,2]
[313030800,1706650240252,-4343.29734569,0.00021055,2]
[313030802,1706650240261,-156.66877586,0.00021055,2]
[313030804,1706650240270,-166.52761117,0.00021055,2]
[313030807,1706650240280,-1782.44041119,0.00021055,2]
[313030809,1706650240289,-155.02170304,0.00021055,2]
[313030811,1706650240299,-4803.01469645,0.00021055,2]
[313030812,1706650240308,-204.79527494,0.00021055,2]